bitfinex/quotes_ETHUSD_20251021
["timestamp","ask_amount","ask_price","bid_price","bid_amount"]
[1761088575172,5.85847097,3902.5,3902.3,2.02484308]
[1761088575395,2.06208,3903.3,3902.3,2.02484308]
[1761088575396,5.85852562,3902.4,3902.3,2.02484308]
[1761088575587,5.85852562,3902.4,3902.3,1.58834308]
[1761088575777,5.85852562,3902.4,3902.3,2.02484308]
[1761088575979,5.85852562,3902.4,3902.3,1.58834308]
[1761088576159,6.36540562,3902.4,3902.3,1.58834308]
[1761088576500,8.81338787,3902.4,3902.3,1.58834308]
[1761088579759,9.21529186,3902.4,3902.3,1.58834308]
[1761088580202,8.81338787,3902.4,3902.3,1.58834308]
[1761088581465,8.81338787,3902.4,3902.3,1.59034308]
[1761088582070,8.81338787,3902.4,3902.3,2.01934308]
[1761088582468,1.5552,3902.4,3902.3,2.01934308]
[1761088582695,7.41372562,3902.4,3902.3,2.01934308]
[1761088583128,7.41372562,3902.4,3902.3,1.59034308]
[1761088584535,7.92060562,3902.4,3902.3,1.59034308]
[1761088586485,8.01960562,3902.4,3902.3,1.59034308]
[1761088586818,9.97724747,3902.4,3902.3,1.59034308]
[1761088587023,10.07624747,3902.4,3902.3,1.59034308]
[1761088587325,9.97724747,3902.4,3902.3,1.59034308]
[1761088589424,10.51866343,3902.4,3902.3,1.59034308]
[1761088590438,10.61766343,3902.4,3902.3,1.59034308]
[1761088590831,10.51866343,3902.4,3902.3,1.59034308]
[1761088593760,11.1950209,3902.4,3902.3,1.59034308]
[1761088593915,10.94701654,3902.4,3902.3,1.59034308]
[1761088594431,11.85411759,3902.4,3902.3,1.59034308]
[1761088595225,10.94701654,3902.4,3902.3,1.59034308]
[1761088595431,4.62480263,3902.1,3902.0,1.58834308]
[1761088595638,9.36922565,3902.1,3902.0,1.58834308]
[1761088595850,9.46822565,3902.1,3902.0,1.58834308]
[1761088596151,8.56121859,3902.1,3902.0,1.58834308]
[1761088596844,10.32383596,3902.1,3902.0,1.58834308]
[1761088597147,11.28312431,3902.1,3902.0,1.58834308]
[1761088597347,9.92247273,3902.1,3902.0,1.58834308]
[1761088598137,2.56305105,3901.6,3901.4,1.58834308]
[1761088598471,7.3104911,3901.6,3901.4,1.58834308]
[1761088598771,7.95019142,3901.6,3901.4,1.58834308]
[1761088599258,7.04016733,3901.6,3901.4,1.58834308]
[1761088599430,9.10224733,3901.6,3901.4,1.58834308]
[1761088599626,9.10224733,3901.6,3899.8,0.2274]
[1761088599627,3.0704567,3900.8,3900.5,0.6875]
[1761088599831,7.47126773,3900.8,3900.5,0.6875]
[1761088600032,7.47126773,3900.8,3900.7,2.06184308]
[1761088601440,6.40099266,3900.8,3900.7,2.06184308]
[1761088601763,3.83741596,3900.8,3900.7,2.06184308]
[1761088601976,0.54141596,3900.8,3900.7,2.06184308]
[1761088602130,3.296,3900.8,3900.7,2.06184308]
[1761088602465,3.83741596,3900.8,3900.7,2.06184308]
[1761088602833,6.40099266,3900.8,3900.7,2.06184308]
[1761088603234,3.83741596,3900.8,3900.7,2.06184308]
[1761088604335,6.40681911,3900.8,3900.7,2.06184308]
[1761088605045,3.84324241,3900.8,3900.7,2.06184308]
[1761088605356,6.40681911,3900.8,3900.7,2.06184308]
[1761088605783,6.40681911,3900.8,3900.7,1.58834308]
[1761088605983,7.96624725,3900.8,3900.7,2.06184308]
[1761088606499,6.40681911,3900.8,3900.7,2.06184308]
[1761088607696,3.84324241,3900.8,3900.7,2.06184308]
[1761088610108,0.001,3902.3,3900.7,2.06184308]
[1761088610109,0.68405301,3901.7,3900.7,2.06184308]
[1761088610275,0.001,3902.3,3902.2,0.214]
[1761088610476,6.15434377,3902.3,3902.2,0.214]
[1761088610696,6.70177624,3902.3,3902.2,0.6875]
[1761088611100,2.56311674,3901.5,3901.4,0.4735]
[1761088611403,3.84415732,3901.5,3901.1,0.4735]
[1761088611611,4.11851385,3901.2,3901.1,0.4735]
[1761088611761,7.96267117,3901.2,3901.1,0.4735]
[1761088611965,7.96267117,3901.2,3900.7,1.58834308]
[1761088611966,5.39935732,3901.2,3900.7,1.58834308]
[1761088612166,2.56351098,3900.9,3900.8,0.4735]
[1761088612463,6.4076683,3900.9,3900.8,0.4735]
[1761088612669,2.5635767,3900.8,3900.7,1.58834308]
[1761088612994,0.54815732,3900.8,3900.7,1.58834308]
[1761088613309,3.11173402,3900.8,3900.7,2.06184308]
[1761088613674,0.54815732,3900.8,3900.7,2.06184308]
[1761088614194,3.296,3900.9,3900.7,2.06184308]
[1761088614400,3.296,3900.9,3900.8,0.4464]
[1761088614574,0.40200967,3901.3,3900.8,0.4464]
[1761088614774,0.54969542,3901.3,3901.2,0.2285]
[1761088614971,0.54969542,3901.3,3900.7,4.15194118]
[1761088614972,2.5635767,3900.8,3900.7,1.58834308]
[1761088615211,8.4703008,3900.8,3900.7,1.58834308]
[1761088615394,9.64221352,3900.8,3900.7,2.03474308]
[1761088615688,9.64221352,3900.8,3900.7,1.58834308]
[1761088618487,9.13533352,3900.8,3900.7,1.58834308]
[1761088618779,9.64221352,3900.8,3900.7,1.58834308]
[1761088619491,9.74181352,3900.8,3900.7,1.58834308]
[1761088621479,9.64221352,3900.8,3900.7,1.58834308]
[1761088621680,2.56416831,3899.9,3898.8,14.5]
[1761088621899,2.56436557,3899.6,3899.5,0.2285]
[1761088622082,2.56436557,3899.6,3898.4,2.56514154]
[1761088622083,3.84578149,3899.6,3898.7,0.4464]
[1761088622396,2.56457511,3899.3,3898.9,0.6604]
[1761088622695,3.31385874,3899.2,3898.9,0.6604]
[1761088622895,3.31385874,3899.2,3899.0,0.4464]
[1761088623220,2.56478324,3899.0,3898.8,0.2285]
[1761088623423,1.5552,3899.9,3899.1,0.2285]
[1761088623607,3.296,3900.1,3899.5,2.56437365]
[1761088624112,3.296,3900.1,3899.6,3.01075782]
[1761088624616,3.296,3900.1,3899.3,2.56456075]
[1761088624617,3.296,3900.1,3899.7,0.4464]
[1761088624919,1.5552,3900.6,3899.7,0.4464]
[1761088625082,3.84481833,3900.5,3899.7,0.74748188]
[1761088625283,3.296,3900.4,3899.9,2.56411183]
[1761088625523,3.296,3900.4,3899.8,14.9464]
[1761088625814,3.296,3900.4,3900.3,0.2285]
[1761088626128,3.296,3900.4,3900.3,0.6749]
[1761088626818,0.68954741,3901.4,3900.3,0.6749]
[1761088627022,3.86409035,3901.3,3900.4,0.4464]
[1761088627185,2.55979539,3901.2,3900.4,0.4464]
[1761088627391,0.54923161,3901.1,3900.4,0.4464]
[1761088627706,0.001,3901.4,3901.2,0.2285]
[1761088628096,0.001,3901.4,3901.3,0.4464]
[1761088628326,0.001,3901.4,3901.3,3.00964814]
[1761088628513,0.001,3901.4,3901.3,0.4464]
[1761088629026,0.001,3901.4,3901.3,14.9464]
[1761088629187,2.56418244,3901.4,3901.3,0.4464]
[1761088629501,0.84521066,3901.4,3900.8,0.4464]
[1761088629698,2.56331385,3901.2,3900.8,0.4464]
[1761088629899,0.01885874,3901.1,3900.8,14.9464]
[1761088630100,3.295,3901.2,3901.1,0.2285]
[1761088630622,5.85831385,3901.2,3901.1,0.6749]
[1761088630798,5.85831385,3901.2,3901.1,0.2285]
[1761088631004,3.295,3901.2,3901.1,0.6749]
[1761088633790,0.001,3901.4,3901.2,2.56329753]
[1761088634141,0.001,3901.4,3901.3,2.58888062]
[1761088634426,0.001,3901.4,3901.3,4.59048062]
[1761088634630,0.001,3901.4,3901.3,19.06484814]
[1761088635697,0.001,3901.4,3901.3,17.50964814]
[1761088637234,0.001,3901.4,3901.3,20.80464814]
[1761088637406,0.001,3901.4,3901.3,23.19668132]
[1761088638422,0.001,3901.4,3901.3,24.75188132]
[1761088638606,0.001,3901.4,3901.3,25.25876132]
[1761088642300,0.001,3902.7,3902.2,3.06953696]
[1761088642503,1e-08,3903.1,3903.0,3.06901169]
[1761088642702,1e-08,3903.1,3903.0,8.48133453]
[1761088642942,1e-08,3903.1,3903.0,8.95163453]
[1761088643144,1e-08,3903.1,3903.0,23.45163453]
[1761088643342,1e-08,3903.1,3903.0,20.15763453]
[1761088643645,1e-08,3903.1,3903.0,19.65075453]
[1761088643833,1e-08,3903.1,3903.0,22.94475453]
[1761088644198,1e-08,3903.1,3903.0,19.65075453]
[1761088644404,1e-08,3903.1,3903.0,21.38955453]
[1761088644658,1e-08,3903.1,3903.0,14.9703]
[1761088644813,1e-08,3903.1,3903.0,18.2633]
[1761088645019,1e-08,3903.1,3903.0,20.82543169]
[1761088645542,1e-08,3903.1,3903.0,22.88751169]
[1761088646942,1e-08,3903.1,3903.0,22.88594993]
[1761088647103,1e-08,3903.1,3903.0,24.87458106]
[1761088649611,1e-08,3903.1,3903.0,24.36770106]
[1761088651448,0.1005,3904.8,3903.2,1.5552]
[1761088651649,2.56113678,3904.6,3903.8,2.56155756]
[1761088651844,2.56116244,3904.5,3903.9,6.70849997]
[1761088652061,0.52226138,3904.5,3903.9,9.27002416]
[1761088652271,0.1005,3904.5,3904.0,14.5]
[1761088652477,0.1615,3905.0,3904.0,14.5]
[1761088652684,1.5552,3904.8,3904.1,2.56139568]
[1761088652842,2.5610356,3904.7,3904.0,14.5]
[1761088653044,2.5610356,3904.7,3904.0,17.06145932]
[1761088654747,3.09941354,3904.7,3904.0,14.5]
[1761088654949,2.6615818,3904.6,3904.0,14.5]
[1761088655136,2.661605,3904.6,3904.0,14.5]
[1761088655667,0.001,3904.7,3904.1,2.56139675]
[1761088656038,1.5552,3905.2,3904.1,2.56139675]
[1761088656039,0.001,3905.5,3904.6,2.7963818]
[1761088656238,0.001,3905.9,3905.8,2.56029494]
[1761088656439,0.001,3906.8,3906.2,2.56003276]
[1761088656639,0.001,3906.8,3906.7,2.55970512]
[1761088656837,0.001,3906.8,3906.7,7.45950217]
[1761088657069,0.001,3906.8,3906.7,8.37018512]
[1761088657242,0.001,3906.8,3906.7,24.92197464]
[1761088657449,0.001,3906.8,3906.7,21.09609464]
[1761088657653,0.001,3906.8,3906.7,24.92197464]
[1761088659462,0.001,3906.8,3906.7,21.09609464]
[1761088659686,0.001,3906.8,3906.7,24.41609464]
[1761088660983,0.001,3906.8,3906.7,24.92297464]
[1761088662493,0.001,3906.8,3906.7,21.09609464]
[1761088662796,0.001,3906.8,3906.7,24.41309464]
[1761088663988,0.001,3908.6,3907.1,2.55944306]
[1761088664191,0.001,3909.2,3908.9,2.55826447]
[1761088664364,0.001,3909.2,3909.1,2.55813358]
[1761088664566,0.001,3909.6,3909.5,4.61995185]
[1761088664806,0.001,3909.8,3909.7,4.619821]
[1761088664971,0.001,3909.8,3909.7,4.64539841]
[1761088665167,0.001,3909.8,3909.7,5.049221]
[1761088665368,0.001,3909.8,3909.7,5.07479841]
[1761088665595,0.001,3909.8,3909.7,5.049221]
[1761088665797,0.001,3909.8,3909.7,19.549221]
[1761088666303,0.001,3909.8,3909.7,22.907221]
[1761088667505,0.001,3910.6,3909.7,22.907221]
[1761088667506,0.001,3910.6,3910.1,3.06435934]
[1761088667671,0.001,3910.6,3910.5,2.55721774]
[1761088667865,0.13043269,3913.3,3910.5,8.40369774]
[1761088668066,0.13043269,3913.3,3911.2,1.5552]
[1761088668377,0.2616,3913.0,3912.0,2.55621539]
[1761088668576,0.2616,3913.0,3912.1,3.364]
[1761088668577,0.161,3913.0,3912.1,3.364]
[1761088668904,0.161,3913.0,3912.2,3.38956106]
[1761088669109,0.161,3913.0,3912.3,2.55603796]
[1761088669344,0.003,3913.7,3912.5,2.55591054]
[1761088669473,0.1826,3914.0,3912.6,3.364]
[1761088669474,0.099,3913.6,3912.6,3.364]
[1761088669671,0.099,3913.6,3912.7,3.364]
[1761088669873,0.26541285,3913.5,3912.8,3.364]
[1761088670184,0.099,3913.6,3912.9,3.364]
[1761088670387,0.099,3913.6,3913.0,3.364]
[1761088670695,0.01885874,3913.5,3912.7,3.364]
[1761088670872,2.8153794,3913.4,3912.7,3.364]
[1761088671074,0.01885874,3913.3,3911.6,2.98588833]
[1761088671313,2.81538947,3913.3,3911.9,2.55624004]
[1761088671512,0.26,3913.3,3911.9,1.5552]
[1761088671714,0.1826,3914.0,3911.2,0.74218]
[1761088671715,2.55602044,3912.4,3911.2,0.2353]
[1761088672006,2.06208,3913.5,3911.2,0.2353]
[1761088672180,0.26,3912.3,3911.3,0.82]
[1761088672382,0.28160161,3912.3,3911.4,0.02556629]
[1761088672581,2.81591065,3912.5,3911.3,1.0553]
[1761088672788,0.26,3912.5,3911.3,1.0553]
[1761088673234,0.26,3913.3,3911.3,1.0553]
[1761088673533,2.55600576,3912.4,3911.4,1.5552]
[1761088673708,2.55545333,3913.2,3911.1,0.2285]
[1761088674036,2.55599221,3912.4,3911.3,1.5552]
[1761088674398,2.81599221,3912.4,3911.3,1.5552]
[1761088674635,0.26,3912.4,3911.3,1.5552]
[1761088674842,2.81603917,3912.4,3911.3,4.11187763]
[1761088675436,0.1627,3912.5,3911.8,2.55634209]
[1761088675641,0.1627,3912.5,3911.9,0.02556302]
[1761088676049,0.1627,3912.5,3911.7,3.364]
[1761088676223,0.1627,3912.5,3911.7,5.92037312]
[1761088676621,0.43454842,3912.5,3911.7,5.92037312]
[1761088677030,0.43454842,3912.5,3911.8,2.55635995]
[1761088677332,0.43454842,3912.5,3911.7,3.364]
[1761088677533,2.5561284,3912.2,3911.8,3.36]
[1761088677937,2.5561284,3912.2,3910.4,3.0641027]
[1761088677938,2.55643019,3911.8,3910.1,1.66656495]
[1761088678157,0.1627,3911.9,3910.2,3.8244]
[1761088678469,0.099,3911.8,3910.6,2.55714103]
[1761088678749,0.099,3911.8,3910.3,2.55733619]
[1761088678750,0.099,3911.8,3910.7,3.056]
[1761088678916,0.099,3911.8,3910.8,2.55700417]
[1761088679112,0.28180167,3911.7,3910.5,0.4644]
[1761088679356,2.55643454,3911.7,3910.6,1.516]
[1761088679520,2.55643454,3911.7,3910.5,0.4644]
[1761088679521,2.55643454,3911.7,3910.7,4.9142]
[1761088679715,2.55643326,3911.7,3910.8,3.359]
[1761088679916,0.099,3911.8,3910.9,2.55693951]
[1761088680110,0.099,3911.8,3910.8,3.359]
[1761088680359,0.1818,3910.9,3910.8,3.358]
[1761088680517,0.1818,3910.9,3909.9,0.4644]
[1761088680518,0.1818,3910.9,3910.2,2.55738589]
[1761088680743,0.1818,3910.9,3910.3,3.358]
[1761088680970,2.55636791,3911.8,3910.5,2.55718407]
[1761088681282,0.099,3911.5,3910.6,3.358]
[1761088681486,0.099,3911.5,3909.9,0.4644]
[1761088681487,0.01885874,3911.4,3909.9,0.4644]
[1761088681651,0.099,3911.5,3910.4,3.357]
[1761088681851,2.55689026,3911.1,3910.4,3.357]
[1761088682079,0.25568903,3911.0,3910.4,3.357]
[1761088682280,0.53548903,3911.0,3910.4,3.357]
[1761088682444,2.55708017,3910.8,3910.4,3.357]
[1761088682646,2.55708017,3910.8,3909.6,4.34830614]
[1761088682647,0.01885874,3910.7,3909.6,0.2353]
[1761088682942,0.01885874,3910.7,3909.0,0.2285]
[1761088683170,0.2816,3910.6,3909.0,0.92]
[1761088683488,2.55728314,3910.4,3909.0,0.92]
[1761088683787,3.06429394,3910.2,3908.6,1.014]
[1761088683987,0.162,3908.7,3908.1,2.845]
[1761088684197,0.162,3908.7,3907.6,2.55908584]
[1761088684344,0.1614,3909.1,3907.7,3.8459905]
[1761088684543,2.5583369,3908.8,3907.7,0.4644]
[1761088684778,0.1002,3909.0,3908.0,2.55879368]
[1761088684980,0.28197349,3908.9,3907.8,3.8204]
[1761088685182,0.28197349,3908.9,3907.6,2.55906314]
[1761088685183,2.55838872,3908.8,3907.9,3.356]
[1761088685353,2.94044532,3908.9,3907.9,3.356]
[1761088685552,2.65858628,3908.8,3907.9,3.356]
[1761088685858,2.65858628,3908.8,3907.4,0.4644]
[1761088685859,2.57725411,3908.7,3907.4,0.4644]
[1761088686189,0.1002,3908.8,3907.4,0.4644]
[1761088686190,0.29594276,3908.6,3907.8,3.355]
[1761088686345,2.5582293,3909.0,3907.8,3.355]
[1761088686346,2.5582293,3909.0,3907.9,2.55886062]
[1761088686543,0.1002,3908.9,3907.8,3.355]
[1761088686744,2.5584606,3908.7,3907.8,3.355]
[1761088686988,0.1002,3908.9,3907.4,0.4644]
[1761088687148,0.1002,3908.9,3908.1,2.55878271]
[1761088687447,2.55851342,3908.6,3907.6,2.55911466]
[1761088687643,3.08021775,3908.6,3907.6,3.354]
[1761088687885,3.08021775,3908.6,3907.0,0.2285]
[1761088687886,0.1621,3907.7,3907.0,0.2285]
[1761088688046,0.1621,3907.7,3907.2,3.353]
[1761088689392,0.1615,3908.1,3907.3,2.55931205]
[1761088689559,0.1615,3908.1,3907.2,5.91237193]
[1761088689759,0.1615,3908.1,3907.3,2.55931001]
[1761088689960,0.1615,3908.1,3907.4,2.55923614]
[1761088690191,0.1615,3908.1,3907.3,2.55931186]
[1761088690691,2.55904523,3907.8,3907.1,0.002]
[1761088690900,0.12035874,3908.0,3907.1,0.002]
[1761088690901,2.67921772,3908.0,3907.1,0.002]
[1761088691068,0.1015,3907.9,3907.1,0.002]
[1761088691260,2.55904412,3907.8,3907.1,0.002]
[1761088692000,0.1015,3907.9,3907.1,2.56143995]
[1761088692299,2.55903543,3907.8,3907.1,0.002]
[1761088692482,0.53808895,3907.8,3907.1,0.002]
[1761088692669,2.55897682,3907.9,3907.1,0.002]
[1761088693063,0.1015,3908.0,3907.1,0.002]
[1761088693264,0.01885874,3907.9,3907.1,0.002]
[1761088693463,2.55910221,3907.7,3907.1,0.002]
[1761088694374,2.66049872,3907.8,3907.1,2.5614263]
[1761088694663,0.1015,3907.8,3907.1,2.5614263]
[1761088695302,0.1615,3908.1,3907.1,0.2305]
[1761088695463,0.1615,3908.1,3907.1,0.002]
[1761088695464,2.55896676,3907.9,3907.1,0.002]
[1761088695679,2.55896676,3907.9,3907.2,2.55936805]
[1761088696214,2.66036505,3908.0,3907.2,2.55936805]
[1761088696604,2.66042121,3907.9,3907.2,2.55936805]
[1761088696985,0.1015,3907.9,3907.2,2.55936805]
[1761088697182,0.1015,3907.8,3907.1,0.002]
[1761088697705,0.51265,3908.1,3907.1,2.78989387]
[1761088697900,2.55887959,3908.0,3907.1,0.2305]
[1761088698118,2.55893244,3907.9,3907.1,0.2305]
[1761088698316,0.51265,3908.1,3907.1,0.2305]
[1761088698317,0.1015,3907.8,3907.2,3.41649997]
[1761088698626,0.1015,3907.8,3907.1,0.002]
[1761088698627,2.55937755,3907.2,3907.1,0.002]
[1761088698922,2.55928192,3907.4,3907.1,0.002]
[1761088699233,2.55937755,3907.2,3907.1,0.002]
[1761088699585,0.1015,3907.2,3907.1,0.002]
[1761088699806,2.55913274,3907.6,3907.1,0.002]
[1761088700015,2.66055417,3907.7,3907.1,0.002]
[1761088700218,2.55905417,3907.7,3907.1,0.002]
[1761088700385,0.52194816,3907.7,3907.1,0.002]
[1761088700715,2.55913254,3907.6,3907.1,0.002]
[1761088701521,0.51265,3908.1,3907.2,2.55932017]
[1761088701725,1.7167,3908.1,3907.3,2.55925028]
[1761088701892,3.343,3908.5,3907.8,2.55892417]
[1761088702094,3.343,3908.5,3907.6,0.02559115]
[1761088702296,3.343,3908.5,3907.9,2.55891573]
[1761088702818,3.343,3908.5,3907.9,2.5589061]
[1761088703112,5.90154693,3908.5,3907.5,2.55911592]
[1761088703327,5.90154693,3908.5,3907.7,2.55899833]
[1761088703945,5.90154693,3908.5,3907.8,2.55898117]
[1761088704243,3.343,3908.5,3907.9,2.55888863]
[1761088704394,3.343,3908.5,3907.8,2.55898078]
[1761088704815,3.343,3908.5,3907.9,2.55891686]
[1761088705231,3.343,3908.5,3907.8,2.55897095]
[1761088705426,3.343,3908.5,3907.8,0.02558984]
[1761088705600,3.341,3909.0,3907.7,0.4713]
[1761088705800,2.55846479,3908.6,3907.7,0.4713]
[1761088706019,2.55844246,3908.7,3907.9,2.55891835]
[1761088706222,2.55844246,3908.7,3907.7,3.03034939]
[1761088706223,3.95695432,3909.0,3907.7,0.4713]
[1761088706421,2.55857466,3908.5,3907.5,3.342]
[1761088706722,2.55854828,3908.5,3907.8,2.55892842]
[1761088707129,2.55844546,3908.7,3907.9,2.55891026]
[1761088707316,2.55832627,3908.9,3908.1,2.55876336]
[1761088707828,2.55845742,3908.7,3908.0,0.4713]
[1761088708039,2.55845742,3908.7,3908.0,3.03013038]
[1761088708339,2.55842034,3908.7,3908.0,3.03013038]
[1761088708629,2.55846382,3908.6,3907.9,0.51179603]
[1761088708833,2.55853171,3908.5,3907.8,2.55896859]
[1761088709037,2.55840029,3908.7,3907.6,0.4713]
[1761088709338,2.55847288,3908.6,3907.8,2.55898235]
[1761088709502,2.55840969,3908.7,3907.5,3.338]
[1761088709695,2.55840969,3908.7,3907.7,2.55902176]
[1761088709696,2.55859674,3908.4,3907.7,2.55902176]
[1761088709897,2.82425964,3908.6,3907.8,2.55896501]
[1761088710098,2.55851867,3908.6,3907.9,2.55890934]
[1761088710298,4.8962,3909.0,3907.5,3.337]
[1761088710538,0.54335427,3908.9,3908.1,2.55877324]
[1761088710751,0.64235427,3908.9,3907.6,0.4713]
[1761088710939,2.55847896,3908.6,3907.7,0.38083]
[1761088711141,2.55847896,3908.6,3907.8,17.05895717]
[1761088711338,2.65733663,3908.8,3907.8,14.5]
[1761088711339,0.54431281,3908.5,3907.8,14.5]
[1761088711649,2.558333,3908.8,3908.0,2.55883156]
[1761088711837,3.10256267,3908.7,3907.9,2.55890752]
[1761088712045,2.55840618,3908.7,3908.0,2.55885031]
[1761088712345,0.5450418,3908.6,3908.1,14.5]
[1761088713454,0.5450418,3908.6,3908.1,17.05877722]
[1761088713749,0.099,3908.5,3908.1,14.5]
[1761088713917,0.5450418,3908.5,3908.1,14.5]
[1761088714124,0.5450418,3908.6,3908.1,17.05878521]
[1761088714541,3.10353187,3908.6,3908.1,14.5]
[1761088714718,0.5450418,3908.5,3908.1,14.5]
[1761088714916,3.10339066,3908.8,3908.1,17.05877237]
[1761088715148,0.5450418,3908.7,3908.1,17.05877237]
[1761088715355,3.10344641,3908.7,3908.1,14.5]
[1761088715550,0.5450418,3908.6,3908.1,14.5]
[1761088716260,2.55846973,3908.6,3908.1,14.5]
[1761088716553,0.5450418,3908.5,3908.1,14.5]
[1761088716854,0.64530757,3908.5,3907.9,2.55890121]
[1761088717054,3.20383469,3908.5,3907.8,2.55896301]
[1761088717358,3.20383469,3908.5,3903.8,0.05]
[1761088717359,0.66416631,3908.4,3907.1,0.002]
[1761088717519,2.55883863,3908.1,3907.3,3.331]
[1761088717723,2.55885447,3908.0,3907.3,5.8902916]
[1761088717917,0.01885874,3907.9,3907.2,14.5]
[1761088718123,2.55902685,3907.8,3907.2,17.832]
[1761088718324,0.099,3908.0,3907.2,20.39137356]
[1761088718637,3.10491302,3908.1,3907.2,20.39137356]
[1761088718950,2.55892141,3907.9,3907.2,20.39137356]
[1761088719664,0.54649756,3907.8,3907.2,20.38937356]
[1761088720172,0.54649756,3907.8,3907.3,2.55930842]
[1761088720324,0.54638293,3907.9,3907.3,2.55930842]
[1761088720834,0.54638293,3907.9,3907.4,14.5]
[1761088721021,0.54638293,3908.4,3907.7,2.55904514]
[1761088721621,3.10499217,3908.4,3907.7,2.55904514]
[1761088721854,0.54638293,3908.3,3907.7,2.55904514]
[1761088722161,3.10504656,3908.3,3907.7,2.55904514]
[1761088722344,3.10504656,3908.3,3907.6,5.88910755]
[1761088722345,0.54638293,3908.2,3907.6,5.88910755]
[1761088722523,0.54638293,3908.2,3907.6,5.88909849]
[1761088723547,3.10510729,3908.2,3907.6,5.88909849]
[1761088723726,0.54638293,3908.1,3907.6,3.33]
[1761088724058,0.54638293,3908.1,3907.4,16.56174084]
[1761088724059,0.54638293,3908.1,3907.4,14.5]
[1761088724268,0.099,3908.0,3907.4,17.828]
[1761088724445,0.099,3908.0,3907.4,5.88723164]
[1761088724649,3.10524719,3908.0,3907.4,3.328]
[1761088724866,0.54638293,3907.9,3907.4,3.328]
[1761088725063,0.54638293,3907.9,3907.1,0.2281]
[1761088725064,0.56524167,3907.9,3907.3,14.5]
[1761088725251,2.55898001,3907.9,3907.3,3.327]
[1761088725567,3.10540998,3907.8,3907.3,3.327]
[1761088725785,2.55892919,3907.9,3907.6,0.002]
[1761088725985,0.546808,3907.8,3907.6,0.002]
[1761088726359,2.55905008,3907.7,3907.6,0.002]
[1761088726559,0.546808,3907.7,3907.6,0.002]
[1761088726773,2.65799442,3907.8,3907.6,0.002]
[1761088726977,0.546808,3907.7,3907.6,0.002]
[1761088727176,0.546808,3907.8,3907.6,0.002]
[1761088727384,3.105798,3907.8,3907.6,0.002]
[1761088727584,0.546808,3907.7,3907.6,0.002]
[1761088728098,4.10888446,3908.2,3907.6,0.002]
[1761088728099,0.546808,3907.8,3907.6,0.002]
[1761088728262,1.6542,3908.6,3907.6,0.002]
[1761088728263,0.546808,3908.1,3907.6,0.02759115]
[1761088728573,0.546808,3908.3,3907.7,3.8198905]
[1761088728773,0.546808,3908.6,3907.7,3.8198905]
[1761088728974,0.546808,3908.7,3908.2,2.55867165]
[1761088729221,0.546808,3908.7,3908.1,3.325]
[1761088729510,0.546808,3908.9,3908.6,0.2261]
[1761088729667,0.546808,3909.0,3908.6,0.2261]
[1761088730207,2.71924328,3908.7,3907.6,0.85608912]
[1761088730497,3.12414497,3908.6,3907.6,0.85608912]
[1761088730665,2.55859175,3908.4,3907.9,3.323]
[1761088730862,0.56566674,3908.3,3907.6,0.002]
[1761088731188,0.546808,3908.6,3907.9,3.323]
[1761088731389,0.707608,3908.7,3907.9,3.323]
[1761088731701,3.10527122,3908.6,3907.9,3.323]
[1761088731886,0.546808,3908.5,3907.9,3.323]
[1761088732091,3.10536026,3908.5,3907.9,3.323]
[1761088732291,0.546808,3908.4,3907.9,3.323]
[1761088733580,0.546808,3908.4,3907.8,14.5]
[1761088733581,2.55876648,3908.2,3907.8,14.5]
[1761088733820,2.55876648,3908.2,3907.7,3.321]
[1761088733821,2.55886864,3908.0,3907.7,3.321]
[1761088733980,2.5589218,3907.9,3907.7,3.321]
[1761088734188,2.55905008,3907.7,3907.6,0.002]
[1761088734411,0.54708929,3907.7,3907.6,0.002]
[1761088734617,0.54708929,3907.8,3907.6,0.002]
[1761088734914,3.10608445,3907.8,3907.6,0.002]
[1761088735102,2.55899516,3907.8,3907.6,0.002]
[1761088735499,2.65839576,3908.1,3907.6,0.002]
[1761088735700,2.55895335,3907.9,3907.6,0.002]
[1761088735878,2.5589997,3907.8,3907.6,0.002]
[1761088738309,2.55892012,3907.9,3907.6,0.002]
[1761088738618,2.55898687,3907.8,3907.6,0.002]
[1761088739317,0.0996,3908.1,3907.6,0.002]
[1761088739622,5.87874622,3908.2,3907.6,0.4653]
[1761088739783,3.315,3908.4,3907.7,2.55898912]
[1761088739984,0.54658559,3908.3,3907.7,3.315]
[1761088740219,0.01885874,3908.2,3907.6,0.002]
[1761088740521,2.55905008,3907.7,3907.6,0.002]
[1761088741019,2.55903741,3907.8,3907.6,0.002]
[1761088741020,2.55899928,3907.8,3907.6,0.002]
[1761088741388,2.65845825,3908.0,3907.6,0.002]
[1761088741389,2.55893571,3907.9,3907.6,0.002]
[1761088741799,2.559008,3907.8,3907.6,0.002]
[1761088742014,2.55892904,3907.9,3907.6,0.002]
[1761088742495,2.55898827,3907.8,3907.6,0.002]
[1761088742911,2.55905008,3907.7,3907.6,0.002]
[1761088743117,2.65860339,3907.8,3907.6,0.002]
[1761088743622,2.55900339,3907.8,3907.6,0.002]
[1761088744119,2.55894284,3907.9,3907.6,0.002]
[1761088744323,2.55879736,3908.1,3907.6,0.002]
[1761088744324,3.315,3908.4,3907.6,0.002]
[1761088744554,1.41803492,3908.9,3907.7,6.33334408]
[1761088744555,0.54667029,3908.3,3907.7,6.33334408]
[1761088744823,2.55877949,3908.2,3907.7,3.311]
[1761088745128,2.55877949,3908.2,3907.7,6.72749997]
[1761088745304,2.65840916,3908.1,3907.7,6.72749997]
[1761088745505,3.314,3908.4,3907.7,6.72749997]
[1761088745721,3.10519627,3908.3,3907.7,6.72749997]
[1761088745891,0.54653725,3908.2,3907.7,6.72749997]
[1761088746087,0.54653725,3908.2,3907.6,0.002]
[1761088746088,1.28805688,3908.2,3907.6,0.002]
[1761088746397,2.55885363,3908.0,3907.6,0.002]
[1761088746922,3.314,3908.4,3907.7,0.4633]
[1761088747218,3.1052031,3908.3,3907.7,0.4633]